bitfinex/quotes_BTCUSD_20230114
["timestamp","ask_amount","ask_price","bid_price","bid_amount"]
[1673698841747,0.01134454,20654.0,20653.0,3.22091553]
[1673698841996,0.01134454,20654.0,20653.0,2.62932329]
[1673698842243,0.01134454,20654.0,20653.0,3.06983427]
[1673698842472,0.01134454,20654.0,20653.0,2.92932329]
[1673698842717,0.01134454,20654.0,20653.0,2.71247102]
[1673698842956,0.01134454,20654.0,20653.0,2.41247102]
[1673698843433,0.01134454,20654.0,20653.0,2.71247102]
[1673698843687,0.01134454,20654.0,20653.0,2.20896645]
[1673698843935,0.00690288,20655.0,20653.0,2.16993804]
[1673698844178,0.00690288,20655.0,20654.0,0.24457946]
[1673698844428,0.00690288,20655.0,20654.0,0.1]
[1673698844706,0.26933599,20655.0,20653.0,0.49362374]
[1673698844953,0.00690288,20655.0,20653.0,0.34904428]
[1673698845915,0.21769451,20655.0,20653.0,0.34904428]
[1673698846905,0.02275826,20654.0,20653.0,0.34904428]
[1673698847627,0.28446269,20654.0,20651.0,0.39518261]
[1673698847870,0.28446269,20654.0,20651.0,0.25060315]
[1673698847871,0.47518864,20654.0,20651.0,0.25060315]
[1673698848165,0.28446269,20654.0,20651.0,0.25060315]
[1673698848909,0.28446269,20654.0,20652.0,0.19916423]
[1673698850381,0.28446269,20654.0,20650.0,0.38457946]
[1673698850630,0.23198015,20653.0,20650.0,0.63706285]
[1673698850870,0.4227061,20653.0,20650.0,0.63706285]
[1673698851117,0.23198015,20653.0,20650.0,0.63706285]
[1673698851801,0.23198015,20653.0,20650.0,0.63683179]
[1673698852324,0.9068971,20653.0,20650.0,0.23976894]
[1673698852576,0.23198015,20653.0,20651.0,0.23688027]
[1673698854309,0.23198015,20653.0,20651.0,0.38145973]
[1673698854786,0.02275826,20654.0,20651.0,0.38145973]
[1673698854998,0.25821592,20654.0,20651.0,0.38145973]
[1673698855456,0.2601984,20653.0,20650.0,0.23976894]
[1673698855711,0.484214,20652.0,20650.0,0.23976894]
[1673698855956,0.67493995,20652.0,20650.0,0.23976894]
[1673698856211,0.484214,20652.0,20650.0,0.23976894]
[1673698856987,0.02275826,20654.0,20651.0,0.22257465]
[1673698857234,0.02275826,20654.0,20651.0,0.32257465]
[1673698857493,0.02275826,20654.0,20651.0,0.36715411]
[1673698857733,0.02275826,20654.0,20651.0,0.58400638]
[1673698858278,0.02275826,20654.0,20652.0,0.23646075]
[1673698858985,0.02275826,20654.0,20652.0,0.14457946]
[1673698859242,0.02275826,20654.0,20653.0,0.89250285]
[1673698859243,0.01534251,20654.0,20653.0,0.89250285]
[1673698859481,0.01534251,20654.0,20653.0,1.37172108]
[1673698859739,0.01534251,20654.0,20653.0,1.6695721]
[1673698860002,0.01534251,20654.0,20653.0,1.42487064]
[1673698860229,0.01534251,20654.0,20653.0,1.28022108]
[1673698860485,0.01534251,20654.0,20653.0,1.82992152]
[1673698860706,0.01534251,20654.0,20653.0,2.19160737]
[1673698861127,0.01534251,20654.0,20653.0,1.82992152]
[1673698861733,0.01534251,20654.0,20653.0,2.04690377]
[1673698862400,0.01534251,20654.0,20653.0,2.19160737]
[1673698863039,0.01534251,20654.0,20653.0,1.90225635]
[1673698863275,0.0074701,20654.0,20653.0,1.72056381]
[1673698863739,0.0074701,20654.0,20653.0,1.54764347]
[1673698863978,0.0074701,20654.0,20653.0,1.87433084]
[1673698864231,0.0074701,20654.0,20653.0,1.58497272]
[1673698864458,0.0074701,20654.0,20653.0,1.87433084]
[1673698864694,0.0074701,20654.0,20653.0,1.65730828]
[1673698865933,0.41788343,20654.0,20651.0,0.50644406]
[1673698866185,0.25164427,20653.0,20652.0,0.36183112]
[1673698866445,0.25164427,20653.0,20651.0,0.14474518]
[1673698866701,0.25164427,20653.0,20651.0,0.58428261]
[1673698867462,0.25134427,20653.0,20651.0,0.58428261]
[1673698868247,0.25134427,20653.0,20651.0,0.14474518]
[1673698868570,0.25134427,20653.0,20650.0,0.746213]
[1673698868571,0.67491695,20653.0,20650.0,0.38451412]
[1673698868757,0.67491695,20653.0,20650.0,0.23976894]
[1673698868758,0.321371,20652.0,20650.0,0.23976894]
[1673698869006,1.768507,20651.0,20650.0,0.23976894]
[1673698869285,1.284269,20651.0,20650.0,0.23976894]
[1673698870510,0.1,20650.0,20647.0,0.01514752]
[1673698870774,1.774223,20649.0,20647.0,0.01514752]
[1673698871035,0.315793,20648.0,20647.0,0.01514752]
[1673698871278,0.89794119,20648.0,20647.0,0.01514752]
[1673698872007,0.700101,20648.0,20647.0,0.01514752]
[1673698872247,0.92411256,20648.0,20647.0,0.01514752]
[1673698872497,0.800101,20648.0,20647.0,0.01514752]
[1673698872744,0.95779343,20648.0,20647.0,0.01514752]
[1673698872994,0.700101,20648.0,20647.0,0.01514752]
[1673698873485,0.93282552,20648.0,20647.0,0.01514752]
[1673698874250,0.215793,20648.0,20647.0,0.09069752]
[1673698874502,0.67307286,20651.0,20647.0,0.33471375]
[1673698875007,0.66807286,20651.0,20647.0,0.33471375]
[1673698875222,0.484222,20652.0,20647.0,0.09069752]
[1673698875543,0.484222,20652.0,20648.0,0.19126666]
[1673698875544,0.70535574,20652.0,20648.0,0.19126666]
[1673698876797,0.484212,20653.0,20647.0,0.50787864]
[1673698877088,0.67493795,20653.0,20647.0,0.99220764]
[1673698877349,0.67493795,20653.0,20648.0,1.27793281]
[1673698877350,0.19072595,20653.0,20648.0,1.27793281]
[1673698877582,0.73128766,20654.0,20648.0,1.27793281]
[1673698877583,0.24710566,20654.0,20649.0,0.47720169]
[1673698877837,0.0074701,20654.0,20650.0,0.3085]
[1673698878096,0.0074701,20654.0,20651.0,0.1]
[1673698878338,0.0074701,20654.0,20652.0,0.47720169]
[1673698878590,0.0074701,20654.0,20652.0,0.96991169]
[1673698878830,0.0074701,20654.0,20653.0,0.57720169]
[1673698879077,0.0074701,20654.0,20653.0,1.36989269]
[1673698879587,0.0074701,20654.0,20653.0,1.50119269]
[1673698879831,0.0074701,20654.0,20653.0,1.75126364]
[1673698880076,0.0074701,20654.0,20653.0,1.75886951]
[1673698880327,0.0074701,20654.0,20653.0,1.64593787]
[1673698880589,0.00507327,20654.0,20653.0,1.64593787]
[1673698880828,0.00507327,20654.0,20653.0,1.85655972]
[1673698881071,0.00507327,20654.0,20653.0,2.14567054]
[1673698881314,0.00507327,20654.0,20653.0,2.29066827]
[1673698882601,0.00507327,20654.0,20653.0,2.1457872]
[1673698883107,0.00507327,20654.0,20653.0,2.40793592]
[1673698883354,0.00507327,20654.0,20653.0,2.14578536]
[1673698883599,0.00507327,20654.0,20653.0,2.41237533]
[1673698883843,0.00507327,20654.0,20653.0,2.14578536]
[1673698884087,0.00507327,20654.0,20653.0,2.35074509]
[1673698884571,0.00507327,20654.0,20653.0,2.10592099]
[1673698884822,0.00507327,20654.0,20653.0,1.8059204]
[1673698885547,0.00507327,20654.0,20653.0,1.9059204]
[1673698885790,0.00507327,20654.0,20653.0,1.80592008]
[1673698886051,0.00507327,20654.0,20653.0,1.4508315]
[1673698886781,0.00507327,20654.0,20653.0,1.8508315]
[1673698887269,0.00507327,20654.0,20653.0,2.08141596]
[1673698887512,0.00507327,20654.0,20653.0,1.87645623]
[1673698887805,0.00507327,20654.0,20653.0,2.16581435]
[1673698888050,0.00507327,20654.0,20653.0,2.27322995]
[1673698888555,0.00507327,20654.0,20653.0,2.06581435]
[1673698888812,0.00507327,20654.0,20653.0,1.84900686]
[1673698889065,0.00221389,20654.0,20653.0,2.21069726]
[1673698889308,0.00221389,20654.0,20653.0,2.17433974]
[1673698889799,0.00690288,20655.0,20654.0,0.17699488]
[1673698890073,0.00690288,20655.0,20654.0,2.05218469]
[1673698890320,0.00690288,20655.0,20654.0,1.60517365]
[1673698890566,0.00690288,20655.0,20654.0,2.30128818]
[1673698891066,0.00773304,20656.0,20654.0,2.79699253]
[1673698891318,0.00773304,20656.0,20655.0,1.07718542]
[1673698891571,0.00773304,20656.0,20655.0,2.52358406]
[1673698891572,0.00273304,20656.0,20655.0,2.52358406]
[1673698892587,0.00273304,20656.0,20655.0,2.30727342]
[1673698893074,0.00273304,20656.0,20655.0,2.34547342]
[1673698894846,3.04e-06,20656.0,20655.0,2.34547342]
[1673698895103,3.04e-06,20656.0,20655.0,1.91229977]
[1673698895340,3.04e-06,20656.0,20655.0,2.98491734]
[1673698895599,3.04e-06,20656.0,20655.0,2.98467092]
[1673698896096,3.04e-06,20656.0,20655.0,2.55239977]
[1673698896372,0.00690288,20658.0,20655.0,2.55239977]
[1673698896373,2.88e-06,20658.0,20657.0,0.1]
[1673698896613,0.00726096,20660.0,20657.0,0.58570169]
[1673698896864,0.00726096,20660.0,20659.0,0.98147378]
[1673698897126,0.0069017,20661.0,20660.0,0.1]
[1673698897369,0.0069017,20661.0,20660.0,2.00584965]
[1673698897619,0.0069017,20661.0,20660.0,2.15404063]
[1673698897863,0.00812776,20663.0,20661.0,0.1]
[1673698898107,0.00812776,20663.0,20661.0,1.96417036]
[1673698898352,0.00812776,20663.0,20661.0,2.12019341]
[1673698899110,0.00673917,20663.0,20662.0,0.1]
[1673698899364,0.00673917,20663.0,20662.0,0.88570169]
[1673698899607,0.00673917,20663.0,20662.0,1.36968169]
[1673698899841,0.00673917,20663.0,20662.0,1.51365864]
[1673698900093,1.978099,20674.0,20663.0,0.1]
[1673698900094,0.23438914,20673.0,20663.0,0.1]
[1673698900336,1.3944,20674.0,20663.0,2.00062473]
[1673698900337,0.20525476,20672.0,20663.0,2.00062473]
[1673698900600,0.00336494,20664.0,20663.0,2.44446367]
[1673698901091,0.00336494,20664.0,20663.0,2.97001471]
[1673698901092,4.94e-06,20664.0,20663.0,2.97001471]
[1673698901331,0.20525476,20672.0,20663.0,2.75304861]
[1673698901586,0.20525476,20672.0,20670.0,0.1312]
[1673698901587,0.19072595,20672.0,20670.0,0.1312]
[1673698901833,0.21997522,20673.0,20671.0,0.47720169]
[1673698902080,0.21997522,20673.0,20671.0,0.48570169]
[1673698902321,0.1,20676.0,20671.0,0.48570169]
[1673698902560,0.20211939,20675.0,20672.0,0.24398071]
[1673698902806,0.321371,20674.0,20672.0,0.24398071]
[1673698903054,0.1,20676.0,20672.0,0.47720169]
[1673698903320,0.25390153,20676.0,20673.0,0.0085]
[1673698903551,1.877995,20679.0,20673.0,0.0085]
[1673698903552,0.483609,20678.0,20673.0,0.0085]
[1673698903803,0.25930473,20677.0,20674.0,0.47720169]
[1673698904046,0.25930473,20677.0,20674.0,0.96089769]
[1673698904296,0.0001,20680.0,20675.0,0.48570169]
[1673698904544,0.0001,20680.0,20676.0,0.77720169]
[1673698904789,0.23902592,20680.0,20677.0,0.585474]
[1673698905079,0.23902592,20680.0,20677.0,0.48570169]
[1673698905080,0.0001,20680.0,20677.0,0.48570169]
[1673698905321,0.0001,20680.0,20678.0,0.67684958]
[1673698905566,0.0001,20680.0,20679.0,0.48570169]
[1673698905815,0.22434141,20680.0,20679.0,0.48570169]
[1673698906050,0.22434141,20680.0,20679.0,1.26928369]
[1673698906051,0.0001,20680.0,20679.0,1.26928369]
[1673698906572,0.0001,20680.0,20679.0,1.36928369]
[1673698907606,0.0001,20680.0,20679.0,1.36942948]
[1673698909069,3.561e-05,20680.0,20679.0,1.50052948]
[1673698909319,3.561e-05,20680.0,20679.0,2.35432948]
[1673698909802,0.00917311,20687.0,20680.0,0.10002439]
[1673698910050,0.20095534,20687.0,20682.0,1.450527]
[1673698910295,0.00917311,20687.0,20683.0,1.02614115]
[1673698910542,0.00917311,20687.0,20685.0,0.1]
[1673698910799,0.00917311,20687.0,20686.0,0.47720169]
[1673698911566,0.00917311,20687.0,20686.0,1.39181969]
[1673698911828,0.00917311,20687.0,20686.0,1.49181969]
[1673698912325,0.00917311,20687.0,20686.0,0.96061969]
[1673698912566,0.00917311,20687.0,20686.0,1.06061969]
[1673698913313,0.00917311,20687.0,20686.0,1.06076543]
[1673698913559,0.00917311,20687.0,20686.0,1.36076543]
[1673698913831,0.01821162,20694.0,20687.0,0.1]
[1673698914081,0.01821162,20694.0,20691.0,0.60740169]
[1673698914325,0.01821162,20694.0,20692.0,0.47734739]
[1673698914563,0.01821162,20694.0,20693.0,0.57720169]
[1673698914824,0.01821162,20694.0,20693.0,1.36045669]
[1673698915831,0.01821162,20694.0,20693.0,0.96045669]
[1673698916082,0.01821162,20694.0,20693.0,1.06045669]
[1673698917091,0.01821162,20694.0,20693.0,1.49165669]
[1673698917341,0.01821162,20694.0,20693.0,1.93866773]
[1673698917596,1.0501,20700.0,20693.0,2.44183298]
[1673698917857,1.0501,20700.0,20697.0,0.47720169]
[1673698918107,1.0501,20700.0,20698.0,0.82228027]
[1673698918350,1.0501,20700.0,20699.0,0.47720169]
[1673698918596,1.0501,20700.0,20699.0,1.06031669]
[1673698918838,1.0501,20700.0,20699.0,0.96031669]
[1673698919084,1.0501,20700.0,20699.0,0.47720169]
[1673698919344,1.0501,20700.0,20694.0,0.49869608]
[1673698919602,0.82035244,20699.0,20695.0,0.47720169]
[1673698919855,0.42374588,20699.0,20696.0,0.47720169]
[1673698920100,0.2579641,20699.0,20696.0,0.47720169]
[1673698920346,1.533191,20700.0,20696.0,0.47720169]
[1673698920596,0.23882536,20699.0,20696.0,0.47720169]
[1673698920852,0.321371,20698.0,20696.0,0.47720169]
[1673698921111,0.321371,20698.0,20694.0,0.01548708]
[1673698921112,0.215793,20697.0,20694.0,0.01548708]
[1673698921349,0.1,20695.0,20694.0,0.01548708]
[1673698921593,0.98972695,20695.0,20694.0,0.01548708]
[1673698921842,0.799001,20695.0,20694.0,0.01548708]
[1673698922102,0.699001,20695.0,20694.0,0.01548708]
[1673698922356,0.25987564,20699.0,20697.0,0.21782783]
[1673698922606,1.0501,20700.0,20698.0,0.47720169]
[1673698923093,1.0501,20700.0,20699.0,0.21541709]
[1673698924074,1.0501,20700.0,20699.0,0.69261878]
[1673698924332,1.0501,20700.0,20699.0,1.26031669]
[1673698924569,1.0501,20700.0,20699.0,1.36031669]
[1673698925829,0.02349307,20700.0,20699.0,1.36031669]
[1673698926076,0.01112068,20701.0,20700.0,0.99484761]
[1673698926327,0.01112068,20701.0,20700.0,3.4501354]
[1673698926824,0.01112068,20707.0,20701.0,0.1]
[1673698927074,0.01112068,20707.0,20706.0,0.47720169]
[1673698927332,0.01112068,20707.0,20706.0,1.74310369]
[1673698927578,0.01112068,20707.0,20706.0,2.22605469]
[1673698928567,0.01112068,20707.0,20706.0,1.95324147]
[1673698928831,0.01112068,20707.0,20706.0,1.47029047]
[1673698929079,0.01112068,20707.0,20706.0,0.68733947]
[1673698929836,0.22681322,20707.0,20704.0,0.2141543]
[1673698930080,0.22681322,20707.0,20706.0,0.47720169]
[1673698930334,0.01112068,20707.0,20706.0,0.47720169]
[1673698930578,0.00612068,20707.0,20706.0,0.47720169]
[1673698931084,0.00612068,20707.0,20706.0,0.77363242]
[1673698931321,0.00612068,20707.0,20706.0,0.57720169]
[1673698931570,0.00612068,20707.0,20706.0,0.87734729]
[1673698931822,0.00612068,20707.0,20706.0,1.13904729]
[1673698932078,6.8e-07,20707.0,20706.0,1.13904729]
[1673698932338,6.8e-07,20707.0,20706.0,1.1877406]
[1673698932587,6.8e-07,20707.0,20706.0,1.63179284]
[1673698932841,9.11e-06,20708.0,20706.0,2.19312884]
[1673698933092,0.00337915,20715.0,20707.0,3.08168569]
[1673698933355,0.00337915,20715.0,20713.0,0.1305]
[1673698933606,0.00337915,20715.0,20714.0,0.57720169]
[1673698934110,0.00337915,20715.0,20714.0,0.83638862]
[1673698934349,0.00337915,20715.0,20714.0,0.72308019]
[1673698934605,0.00337915,20715.0,20714.0,0.76389326]
[1673698935099,0.00337915,20715.0,20714.0,0.76403879]
[1673698935343,0.00337915,20715.0,20714.0,1.05651301]
[1673698935587,0.00337915,20715.0,20714.0,0.86403879]
[1673698936356,0.00337915,20715.0,20714.0,1.19056231]
[1673698936594,0.00337915,20715.0,20714.0,0.70779731]
[1673698936846,0.00337915,20715.0,20714.0,0.94680379]
[1673698937341,0.00337915,20715.0,20714.0,1.04680379]
[1673698937589,0.00049043,20715.0,20714.0,1.04680379]
[1673698938095,0.00049043,20715.0,20714.0,2.20530379]
[1673698939092,0.00049043,20715.0,20714.0,2.75110973]
[1673698940075,0.00049043,20715.0,20714.0,2.18514635]
[1673698940329,0.00049043,20715.0,20714.0,1.04680379]
[1673698941324,0.00049043,20715.0,20714.0,1.17800379]
[1673698941578,0.00049043,20715.0,20714.0,1.47800379]
[1673698941816,4.3e-07,20715.0,20714.0,1.47800379]
[1673698942069,0.01415832,20722.0,20715.0,0.00046444]
[1673698942314,0.01415832,20722.0,20721.0,0.47720169]
[1673698942556,0.2597079,20722.0,20721.0,0.95980369]
[1673698942823,0.01415832,20722.0,20721.0,0.47720169]
[1673698943057,0.01415832,20722.0,20719.0,0.482637]
[1673698943058,0.18886131,20721.0,20719.0,0.482637]
[1673698943303,1.15595695,20721.0,20715.0,0.10046444]
[1673698943559,1.15595695,20721.0,20716.0,0.47720169]
[1673698943560,0.51209695,20720.0,20716.0,0.47720169]
[1673698943828,0.321371,20719.0,20717.0,0.47720169]
[1673698944069,0.67335095,20720.0,20717.0,0.47720169]
[1673698944070,0.215793,20718.0,20717.0,0.47720169]
[1673698944338,0.482625,20720.0,20717.0,0.47720169]
[1673698944586,0.482672,20718.0,20715.0,0.00046444]
[1673698944829,0.40651895,20717.0,20715.0,0.00046444]
[1673698945070,0.451571,20716.0,20715.0,0.00046444]
[1673698945311,1.417007,20716.0,20715.0,0.00046444]
[1673698946283,1.817007,20716.0,20715.0,0.00046444]
[1673698946536,1.517007,20716.0,20715.0,0.00046444]
[1673698946795,1.817007,20716.0,20715.0,0.00046444]
[1673698947551,1.517007,20716.0,20715.0,0.00046444]
[1673698948540,1.817007,20716.0,20715.0,0.00046444]
[1673698948856,1.61273261,20716.0,20715.0,0.00046444]
[1673698949100,1.386807,20716.0,20715.0,0.00046444]
[1673698949354,1.50084274,20716.0,20715.0,0.00046444]
[1673698949854,1.01812474,20716.0,20715.0,0.00046444]
[1673698950131,0.53540674,20716.0,20715.0,0.00046444]
[1673698951409,0.934589,20716.0,20715.0,0.00046444]
[1673698951651,0.804089,20716.0,20715.0,0.00046444]
[1673698951895,0.904089,20716.0,20715.0,0.00046444]
[1673698952149,0.00046,20715.0,20707.0,0.00609707]
[1673698952401,0.1312,20711.0,20707.0,0.00609707]
[1673698952657,0.51209695,20710.0,20707.0,0.48329876]
[1673698952922,0.40651895,20709.0,20707.0,0.48329876]
[1673698953193,0.67361095,20709.0,20707.0,0.00609707]
[1673698953448,0.321371,20708.0,20707.0,0.00609707]
[1673698953691,0.61209695,20708.0,20707.0,0.00609707]
[1673698953949,1.035476,20708.0,20707.0,0.00609707]
[1673698954708,1.335476,20708.0,20701.0,0.19811685]
[1673698954958,0.1312,20706.0,20701.0,0.47720169]
[1673698955226,0.321371,20705.0,20702.0,0.47720169]
[1673698955456,0.19072595,20706.0,20705.0,0.31533302]
[1673698955709,0.22874818,20707.0,20705.0,0.79253471]
[1673698956470,0.22874818,20707.0,20705.0,0.31533302]
[1673698956716,0.71168118,20707.0,20705.0,0.31533302]
[1673698956958,0.321371,20706.0,20705.0,0.31533302]
[1673698957209,0.804322,20706.0,20705.0,0.31533302]
[1673698957458,1.00098481,20706.0,20705.0,0.31533302]
[1673698957729,1.26338481,20706.0,20705.0,0.31533302]
[1673698958463,0.321371,20706.0,20705.0,0.31533302]
[1673698958717,0.68317979,20707.0,20705.0,0.31533302]
[1673698958718,0.20023479,20707.0,20705.0,0.31533302]
[1673698958957,0.7133798,20706.0,20705.0,0.31533302]
[1673698959209,1.0347508,20706.0,20705.0,0.31533302]
[1673698959945,0.904322,20706.0,20705.0,0.31533302]
[1673698960719,1.13508968,20706.0,20705.0,0.31533302]
[1673698960960,0.904322,20706.0,20705.0,0.31533302]
[1673698961507,1.465522,20706.0,20705.0,0.31533302]
[1673698962006,1.165522,20706.0,20705.0,0.31533302]
[1673698963518,0.904322,20706.0,20705.0,0.31533302]
[1673698963769,0.58292,20708.0,20705.0,0.31533302]
[1673698963770,0.32553837,20708.0,20705.0,0.51958644]
[1673698964021,0.1,20710.0,20705.0,0.51958644]
[1673698964022,0.482866,20710.0,20705.0,0.51958644]
[1673698964265,0.25254703,20710.0,20706.0,0.77720169]
[1673698964532,0.21902079,20709.0,20707.0,0.47720169]
[1673698965264,0.482823,20712.0,20707.0,0.47720169]
[1673698965509,0.67606269,20712.0,20708.0,0.23401942]
[1673698966023,0.482799,20713.0,20709.0,0.47720169]
[1673698966254,0.482799,20713.0,20710.0,0.47720169]
[1673698966255,0.24801207,20713.0,20710.0,0.47720169]
[1673698966499,0.24801207,20713.0,20711.0,0.47720169]
[1673698966761,0.23444269,20712.0,20708.0,0.21345337]
[1673698966970,0.26260073,20711.0,20708.0,0.69065506]
[1673698967465,0.26260073,20711.0,20705.0,0.31533302]
[1673698967466,0.19072595,20711.0,20705.0,0.31533302]
[1673698967718,0.19072595,20711.0,20706.0,0.47720169]
[1673698967719,0.19072595,20710.0,20706.0,0.47720169]
[1673698967962,0.26146043,20709.0,20705.0,0.98148114]
[1673698968216,0.93507238,20709.0,20705.0,0.98148114]
[1673698968709,0.482886,20709.0,20707.0,0.25128514]
[1673698969207,0.74588154,20709.0,20707.0,0.25128514]
[1673698969455,0.321371,20708.0,20707.0,0.25128514]
[1673698969701,0.74588154,20709.0,20705.0,0.79253471]
[1673698969960,0.321371,20708.0,20706.0,0.47720169]
[1673698970210,0.93660749,20709.0,20706.0,0.47720169]
[1673698970458,0.26299554,20709.0,20707.0,0.25951024]
[1673698970988,0.26299554,20709.0,20705.0,0.31533302]
[1673698971206,0.321371,20708.0,20705.0,0.56544598]
[1673698971459,0.215793,20707.0,20706.0,0.22475769]
[1673698971720,0.33072595,20707.0,20705.0,0.31533302]
[1673698971972,0.421371,20706.0,20705.0,0.31533302]
[1673698972214,0.321371,20706.0,20705.0,0.31533302]
[1673698972460,0.321371,20706.0,20705.0,0.53060601]
[1673698972708,0.4829,20709.0,20705.0,0.31533302]
[1673698972951,0.4829,20709.0,20708.0,0.20791287]
[1673698973444,0.804271,20709.0,20708.0,0.20791287]
[1673698973676,0.321371,20709.0,20708.0,0.20791287]
[1673698974242,0.321371,20709.0,20705.0,0.79253471]
[1673698974483,0.40651895,20708.0,20706.0,0.23934967]
[1673698974720,0.74360619,20709.0,20706.0,0.23934967]
[1673698975260,0.321371,20708.0,20706.0,0.23934967]
[1673698975500,0.215793,20707.0,20706.0,0.23934967]
[1673698975755,0.74360619,20709.0,20706.0,0.23934967]
[1673698976031,0.26072419,20709.0,20706.0,0.23934967]
[1673698976521,0.53669618,20708.0,20706.0,0.23934967]
[1673698976775,0.21532518,20708.0,20706.0,0.23934967]
[1673698977749,0.482874,20710.0,20706.0,0.71655136]
[1673698977989,0.67755992,20710.0,20706.0,0.71655136]
[1673698978236,0.25822018,20708.0,20706.0,0.71655136]
[1673698978495,0.215793,20707.0,20706.0,0.71655136]
[1673698978740,0.7402096,20710.0,20706.0,0.71655136]
[1673698979228,0.482808,20713.0,20707.0,0.47720169]
[1673698979470,0.72939602,20714.0,20708.0,0.77720169]
[1673698979471,0.6731633,20714.0,20708.0,0.77720169]
[1673698979725,0.6731633,20714.0,20709.0,0.47720169]
[1673698979726,0.23233829,20713.0,20709.0,0.47720169]
[1673698979965,0.26726138,20712.0,20709.0,0.47720169]
[1673698980237,0.26726138,20712.0,20710.0,0.00014557]
[1673698981019,0.26519364,20711.0,20709.0,0.47720169]
[1673698981258,0.48279,20713.0,20709.0,0.47720169]
[1673698981498,0.74083627,20713.0,20710.0,0.24291121]
[1673698982000,0.2304707,20712.0,20710.0,0.24291121]
[1673698982503,0.71284879,20713.0,20710.0,0.24291121]
[1673698983285,0.23005879,20713.0,20710.0,0.24291121]
[1673698983529,0.2238013,20712.0,20710.0,0.24291121]
[1673698983770,0.70269432,20714.0,20710.0,0.24291121]
[1673698984255,0.21990632,20714.0,20710.0,0.7201129]
[1673698984741,0.21990632,20714.0,20711.0,0.47720169]
[1673698984982,0.21990632,20714.0,20710.0,0.24291121]
[1673698984983,0.24538894,20711.0,20708.0,0.25144448]
[1673698985231,0.51209695,20710.0,20708.0,0.72864617]
[1673698985470,0.24538894,20711.0,20709.0,0.26717975]
[1673698985962,0.24538894,20711.0,20709.0,0.74438144]
[1673698986203,0.22031409,20713.0,20710.0,0.47720169]
[1673698986465,0.20017678,20712.0,20709.0,0.26717975]
[1673698986703,0.20017678,20712.0,20709.0,0.74438144]
[1673698988975,0.20017678,20712.0,20710.0,0.24773532]
[1673698989224,0.48277,20714.0,20710.0,0.72493701]
[1673698989472,0.67731068,20714.0,20710.0,0.72493701]
[1673698989708,0.19454068,20714.0,20710.0,0.72493701]
[1673698989964,0.22958646,20712.0,20708.0,0.35894577]
[1673698990206,0.99493595,20711.0,20708.0,0.26753679]
[1673698990475,0.321371,20710.0,20708.0,0.26753679]
[1673698990719,0.67356495,20711.0,20708.0,0.26753679]
[1673698990970,0.482839,20711.0,20708.0,0.26753679]
[1673698991464,0.51209695,20710.0,20706.0,0.14382738]
[1673698991732,0.51209695,20710.0,20705.0,0.4591604]
[1673698991733,1.85517695,20709.0,20705.0,0.4591604]
[1673698991985,1.85517695,20709.0,20705.0,0.31533302]
[1673698991986,0.51209695,20708.0,20705.0,0.31533302]
[1673698992236,1.181649,20707.0,20705.0,0.31533302]
[1673698992480,0.321371,20706.0,20705.0,0.31533302]
[1673698993495,0.321371,20706.0,20705.0,0.30533302]
[1673698994220,0.482951,20706.0,20705.0,0.30533302]
[1673698994975,0.6751248,20707.0,20705.0,0.30533302]
[1673698995473,0.25278736,20706.0,20705.0,0.30533302]
[1673698995721,0.57415836,20706.0,20705.0,0.30533302]
[1673698995965,1.05710936,20706.0,20705.0,0.30533302]
[1673698996471,0.804322,20706.0,20705.0,0.30533302]
[1673698996712,1.204322,20706.0,20705.0,0.30533302]
[1673698997211,0.904322,20706.0,20705.0,0.30533302]
[1673698997458,1.204322,20706.0,20705.0,0.30533302]
[1673698997705,1.50569477,20706.0,20705.0,0.30533302]
[1673698997956,1.64499477,20706.0,20705.0,0.30533302]
[1673698998207,0.1,20705.0,20701.0,0.00649309]
[1673698998467,1.99552795,20704.0,20701.0,0.00649309]
[1673698998716,0.416371,20703.0,20701.0,0.00649309]
[1673698998986,1.764928,20702.0,20701.0,0.00649309]
[1673698999723,1.93058467,20702.0,20701.0,0.00649309]
[1673698999982,1.44746738,20702.0,20701.0,0.00649309]
[1673699000470,1.23174667,20702.0,20701.0,0.00649309]
[1673699000727,1.55306267,20702.0,20701.0,0.00649309]
[1673699000966,0.1,20706.0,20701.0,0.55924478]
[1673699000967,0.482982,20705.0,20701.0,0.55924478]
[1673699001211,0.71353842,20706.0,20701.0,0.808171]
[1673699001456,0.71353842,20706.0,20701.0,0.55924478]
[1673699001709,0.71353842,20706.0,20701.0,0.70307216]
[1673699001961,0.482938,20707.0,20702.0,0.47720169]
[1673699002200,0.482923,20708.0,20703.0,0.77720169]
[1673699002958,0.482923,20708.0,20703.0,0.92102907]
[1673699003203,1.29256529,20712.0,20704.0,0.47720169]
[1673699003204,0.482871,20710.0,20704.0,0.47720169]
[1673699003457,0.482871,20710.0,20706.0,0.1]
[1673699003720,0.72718637,20710.0,20706.0,0.1]
[1673699004245,0.72718637,20710.0,20705.0,0.87720169]
[1673699004495,0.482833,20712.0,20707.0,0.1]
[1673699004740,0.67228768,20712.0,20707.0,0.57720169]
[1673699004975,0.67228768,20712.0,20707.0,0.47720169]
[1673699005461,0.86301363,20712.0,20707.0,0.47720169]
[1673699005954,0.86301363,20712.0,20707.0,0.57720169]
[1673699006196,0.86301363,20712.0,20707.0,0.47720169]
[1673699006920,0.2069925,20711.0,20707.0,0.47720169]
[1673699007165,0.482833,20712.0,20707.0,0.47720169]
[1673699007427,0.24695329,20714.0,20708.0,0.77720169]
[1673699007709,0.25539471,20713.0,20709.0,0.57720169]
[1673699007967,0.25723803,20711.0,20709.0,0.47720169]
[1673699008219,0.25723803,20711.0,20708.0,0.21834937]
[1673699008472,0.25723803,20711.0,20708.0,0.69555106]
[1673699009242,0.68272001,20713.0,20709.0,0.1]
[1673699009497,0.68272001,20713.0,20710.0,0.47720169]
[1673699009498,0.19992101,20713.0,20710.0,0.47720169]
[1673699009972,0.19992101,20713.0,20711.0,0.19976907]
[1673699010510,0.321316,20712.0,20706.0,1.77169377]
[1673699010759,0.321316,20712.0,20709.0,0.22711018]
[1673699010760,0.19072595,20711.0,20709.0,0.22711018]
[1673699011008,0.67356695,20711.0,20707.0,0.47720169]
[1673699011252,0.19072595,20710.0,20707.0,0.47720169]
[1673699011496,0.19072595,20710.0,20706.0,1.13886949]
[1673699011742,0.19072595,20709.0,20706.0,0.20906949]
[1673699011980,0.67361695,20709.0,20706.0,0.20906949]
[1673699012239,0.67361695,20709.0,20703.0,2.37795177]
[1673699012240,0.51204195,20708.0,20703.0,1.14075574]
[1673699012493,0.482891,20709.0,20703.0,1.14075574]
[1673699012494,1.62241745,20707.0,20703.0,0.26545574]
[1673699012740,0.51204195,20706.0,20701.0,1.02562047]
[1673699012998,0.19072595,20706.0,20702.0,0.82542269]
[1673699013234,0.482875,20710.0,20704.0,0.35894577]
[1673699013478,0.67830215,20711.0,20705.0,0.57720169]
[1673699013728,0.20932818,20710.0,20706.0,0.47720169]
[1673699013966,0.69219518,20710.0,20706.0,0.47720169]